[Event "Rohde op 12th"]
[Site "Sautron"]
[Date "2012.10.29"]
[Round "3"]
[White "Lagarde, Maxime"]
[Black "Nguyen, Chi Minh"]
[Result "1-0"]
[ECO "E12"]
[WhiteElo "2501"]
[BlackElo "2392"]
[Annotator "Atalik/Primel,D"]
[PlyCount "71"]
[EventDate "2012.10.27"]
[EventType "swiss"]
[EventRounds "9"]
[EventCountry "FRA"]
[SourceTitle "EXT 2014"]
[Source "ChessBase"]
[SourceDate "2013.11.20"]
[SourceVersion "1"]
[SourceVersionDate "2013.11.20"]
[SourceQuality "1"]
[TimeControl "40/5400+30:1800+30"]
[WhiteClock "0:42:01"]
[BlackClock "0:09:37"]

1. d4 {[%emt 0:00:00]} e6 {[%emt 0:03:32]} 2. Nf3 {[%emt 0:00:00]} Nf6 {
[%emt 0:00:23]} 3. c4 {[%emt 0:00:04]} b6 {[%emt 0:01:07]} 4. a3 {[%emt 0:00:
45]} Bb7 {[%emt 0:00:35]} (4... Ba6 {L'alternative dans cette variante
Petrossian}) 5. Nc3 {[%emt 0:00:12]} Ne4 $5 {[%emt 0:00:38]} (5... d5 {La
grande ligne} 6. cxd5) 6. Nxe4 {[%emt 0:00:59]} Bxe4 {[%emt 0:00:07]} 7. e3 {
[%emt 0:00:08]} (7. Nd2 Bb7 8. e4 $14 {Ivanchuk,V (2709)-Romanishin,O (2578)
Leonid Stein Memorial 2000 (4) 1/2}) 7... Qf6 {[%emt 0:00:34]} (7... g6 8. Bd3
Bxd3 9. Qxd3 Bg7 10. e4 d6 11. Bg5 f6 12. Be3 Nd7 13. h4 h6 14. O-O-O Qe7 15.
Kb1 O-O-O 16. Rhe1 Kb8 17. d5 e5 18. Nd2 f5 19. exf5 gxf5 20. Qxf5 Qxh4 21. Rh1
Qf6 22. Qc2 {Sokolov,I (2655)-Seirawan,Y (2640)/Dordrecht 2002/EXT 2004/1/2-1/
2 (40)}) (7... Be7 {Plus courant} 8. Bd3 Bxd3 9. Qxd3) 8. Bd3 {[%emt 0:03:08]}
Bxd3 {[%emt 0:00:07]} 9. Qxd3 {[%emt 0:00:04]} Qg6 {[%emt 0:00:05]} 10. e4 $5
$146 {[%emt 0:05:09] Continuant de suivre une suite analysée par le GMI Attalik
} (10. Qxg6 hxg6 11. b4 a5 12. b5 d6 13. a4 Nd7 14. Ba3 Be7 15. Ke2 Rc8 16. h3
f5 17. h4 Kf7 18. Rac1 e5 19. g3 Rhe8 20. Rhd1 Bf6 21. c5 e4 22. Ne1 d5 23. Rc2
Be7 24. c6 Nf6 {Saric,A (2513)-Aguettaz,M (2443)/Pula 2012/Mega2012 Update 25/
1/2-1/2}) 10... Qxg2 {[%emt 0:02:29] Relevant le gant du débat théorique} (
10... d5 11. cxd5 exd5 12. O-O $1 dxe4 (12... Bd6 {Plus solide car sur la
prise de4, les Blancs ont une sérieuse avance de développement.} 13. Re1 O-O)
13. Re1 {[%cal Ge1e8] Atalik,S}) 11. Rg1 {[%emt 0:01:40]} Qh3 {[%emt 0:00:12]}
12. Bf4 $32 {[%emt 0:01:31][%cal Gf4h2,Gf3g5]} h6 $6 {[%emt 0:22:09] Fin de la
préparation des Noirs} (12... d6 $142 13. O-O-O $44 {Atalik}) 13. Bxc7 {
[%emt 0:05:30]} Nc6 {[%emt 0:05:28]} (13... Na6 14. Bf4 g5 (14... Rc8 15. c5
$40 {[%csl Ra6]}) (14... f6 15. c5 g5 16. Rg3 Qh5 17. Be3 Nc7 18. cxb6 axb6 19.
Rc1 $32) 15. Rg3 Qh5) 14. Rg3 {[%emt 0:09:06]} Qh5 {[%emt 0:00:24]} 15. d5 $1 {
[%emt 0:00:31]} (15. O-O-O $143 Rc8 {[%csl Rc7][%cal Gc8c1]}) 15... Rc8 {
[%emt 0:03:17]} 16. dxc6 {[%emt 0:06:45]} (16. Bf4 exd5 (16... Na5 17. Ne5 {
[%cal Ge5c4,Gb2b4]} f6 18. dxe6 dxe6 19. Qd7#) 17. cxd5 $40 {[%csl Re8]} Nb8
18. Rc1 Rxc1+ 19. Bxc1 Bd6 (19... g5 20. Qc3 $18 {[%cal Gc3h8,Gc3c8]}) 20. e5
Bc7 (20... Bxe5 21. Nxe5 Qxe5+ 22. Re3) 21. d6 Bd8 22. Rxg7 Kf8 23. Rg3 Nc6 (
23... Rg8 $2 24. Qh7) 24. Bf4 $18 {Comme les Noirs ne peuvent pas jouer Rg8,
ils ont une pièce de moins.}) 16... Rxc7 {[%emt 0:01:43]} 17. Rd1 $40 {[%emt 0:
01:59]} d6 {[%emt 0:04:29]} 18. e5 $1 {[%emt 0:08:40]} Rxc6 {[%emt 0:01:44]}
19. Qe4 {[%emt 0:00:24]} Kd7 {[%emt 0:05:42]} 20. exd6 {[%emt 0:00:22][%cal
Gf3e5]} f6 $8 {[%emt 0:01:45]} 21. Nd4 $1 {[%emt 0:03:02][%cal Gd4e6,Gg3d3]
Toutes les pièces Blanches sont maintenant mobilisées dans la chasse au K Noir}
Rxd6 {[%emt 0:00:20]} 22. Rgd3 $4 {[%emt 0:00:36] Joué quasiment а tempo alors
que les Blancs avaient encore 50 mns а la pendule et les Noirs qui ont plus
d'expérience ne vont pas rater l'occasion offerte.} (22. Qb7+ Ke8 23. Rgd3 Qg6
{[%cal Gg6d3,Gd6d3]} 24. Kf1 $1 (24. Qc8+ Kf7) 24... Be7 (24... h5 {[%cal
Gh5h4,Gh8h5]} 25. Nxe6 $3 {L'idée de Kf1 mais quasiment impossible а trouver
devant l'échiquier} Rxd3 26. Re1 $18 {[%csl Re8,Rg6][%cal Ge6f8,Ge6f4,Ge1e8]})
25. Nc6 $1) 22... Qe5 $1 {[%emt 0:06:47][%csl Re1,Re4] Un sauvetage miraculeux!
} 23. Qxe5 {[%emt 0:00:10]} fxe5 {[%emt 0:00:09]} 24. Nf3 {[%emt 0:00:49]} Kc7
{[%emt 0:04:33]} 25. Nxe5 {[%emt 0:00:20][%cal Ge5f7] Gagne un P mais dans
cette position ouverte, le B est un peu meilleur que le N et les Noirs ont des
chances de nulle.} Rg8 {[%emt 0:00:41]} 26. Rf3 {[%emt 0:03:47]} Rxd1+ {
[%emt 0:02:49]} 27. Kxd1 {[%emt 0:00:05]} g5 {[%emt 0:00:41]} 28. Rf7+ {
[%emt 0:01:48]} Kd6 $1 {[%emt 0:00:34]} 29. Nd3 {[%emt 0:00:22]} Be7 $44 {
[%emt 0:04:59][%csl Rh2]} 30. Rh7 {[%emt 0:03:11]} a5 {[%emt 0:04:48]} 31. a4
$1 {[%emt 0:00:30]} (31. Rxh6 Rc8 32. b3 a4 $132) 31... Rg6 {[%emt 0:00:50]}
32. Ke2 {[%emt 0:00:52]} Bf6 {[%emt 0:06:06]} 33. Rf7 {[%emt 0:01:52]} Bd4 {
[%emt 0:00:45][%csl Rd3,Gd4]} 34. Kf3 {[%emt 0:01:07]} g4+ {[%emt 0:06:49]} 35.
Ke4 {[%emt 0:00:18]} Bc5 $4 {[%emt 0:00:32] Les Noirs pensaient avoir fait le
plus dur et ils se déconcentrent alors qu'ils avaient encore 10 mns а la
pendule} (35... Bg7) 36. Ne5 $1 {[%emt 0:00:13][%cal Ge5g6,Ge5f7] Un réseau de
mat surgi de nulle part! Je rectifie le score 1-0 et non pas nulle} 1-0

[Event "Khanty-Mansiysk FIDE GP (Women)"]
[Site "Khanty-Mansiysk"]
[Date "2014.04.21"]
[Round "11"]
[White "Dzagnidze, Nana"]
[Black "Zhao, Xue"]
[Result "0-1"]
[ECO "E12"]
[WhiteElo "2550"]
[BlackElo "2552"]
[Annotator "ChessBase Website"]
[PlyCount "80"]
[EventDate "2014.04.09"]
[EventType "tourn"]
[EventRounds "11"]
[EventCountry "RUS"]
[EventCategory "10"]
[SourceTitle "CBM 160"]
[Source "ChessBase"]
[SourceDate "2014.05.15"]
[SourceVersion "1"]
[SourceVersionDate "2014.05.15"]
[SourceQuality "1"]
[TimeControl "40/5400+30:1800+30"]
[WhiteClock "1:30:00"]
[BlackClock "1:30:00"]

1. d4 {[%emt 0:00:00]} Nf6 {[%emt 0:00:00]} 2. c4 {[%emt 0:00:00]} e6 {[%emt 0:
00:00]} 3. Nf3 {[%emt 0:00:00]} b6 {[%emt 0:00:00]} 4. a3 {[%emt 0:00:09]} Bb7
{[%emt 0:01:23]} 5. Nc3 {[%emt 0:00:58]} g6 {[%emt 0:00:04]} 6. Qc2 {[%emt 0:
07:23]} c5 {[%emt 0:09:43]} (6... Bxf3 7. exf3 Nc6 8. Be3 Bg7 9. O-O-O O-O 10.
g4 d5 11. Kb1 Na5 12. cxd5 Nxd5 13. h4 Nxc3+ 14. Qxc3 c5 15. Qd3 cxd4 16. Bxd4
Bxd4 17. Qxd4 Qxd4 18. Rxd4 Rad8 19. Rd3 Nc6 20. Rc3 Rd1+ 21. Kc2 Rd6 22. f4
Rfd8 23. Rd3 Rf8 24. Rc3 Rfd8 25. Rd3 Rxd3 26. Bxd3 Rd4 27. f5 Rxg4 28. fxe6
Nd4+ 29. Kd2 Nxe6 30. h5 Kg7 31. hxg6 hxg6 32. Ke3 Rd4 33. Rc1 Rd7 34. b4 Kf6
35. a4 Re7 36. Rc6 {Grachev,B (2693)-Shirov,A (2709) Jurmala 2013 0-1}) 7. dxc5
{[%emt 0:05:13]} bxc5 {[%emt 0:05:14]} 8. Bf4 {[%emt 0:00:26]} Nh5 {[%emt 0:08:
10]} 9. Bg5 {[%emt 0:13:12]} f6 {[%emt 0:00:48]} 10. Be3 {[%emt 0:05:32]} f5 {
[%emt 0:14:33]} 11. Rd1 {[%emt 0:02:25]} Nc6 $146 {[%emt 0:16:58]} (11... a6
12. g3 Qc7 13. Bg2 Be7 14. Bh6 Nc6 15. O-O Nd8 16. Bd2 Nf7 17. Rfe1 O-O 18. e4
f4 19. g4 Nf6 20. h3 g5 21. e5 Bxf3 22. Bxf3 Nxe5 23. Bxa8 Rxa8 24. Kf1 Nf3 25.
Nd5 Nxd5 26. cxd5 Nxe1 27. Bxe1 Rf8 28. dxe6 dxe6 29. Qe4 Bf6 30. Qxe6+ Qf7 31.
Qxf7+ Rxf7 32. b3 Rb7 33. Rd3 Kf7 34. Ke2 Ke6 35. Kf3 Rc7 36. h4 h6 37. h5 Bb2
38. a4 c4 39. bxc4 Rxc4 40. Rb3 Bd4 41. Rb4 {Jovanic,O (2479)-Zsinka,L (2285)
Pula 2011 1/2-1/2 (64)}) 12. Bg5 {[%emt 0:09:50]} Be7 {[%emt 0:02:41]} 13. Bxe7
{[%emt 0:05:46]} Qxe7 {[%emt 0:00:04]} 14. e3 {[%emt 0:01:30]} O-O {[%emt 0:02:
03]} 15. Be2 {[%emt 0:03:23]} Rad8 {[%emt 0:00:47]} 16. O-O {[%emt 0:10:31]} g5
{[%emt 0:00:25] A very strange game in a locked position. Zhao Xue advanced
all of her pawns quickly, leaving behind many weaknesses but obtaining a big
space advantage. It seems that the game remained rather unclear until Black
manged to maneuver her knight to the beautiful spot e4 (White should have
prevented this by opening lines on the kingside sooner) and after that it was
impossible for Dzagnidze to hold her position together.} 17. Ne1 {[%emt 0:02:
56]} g4 {[%emt 0:01:26]} 18. Nd3 {[%emt 0:00:21]} a5 {[%emt 0:05:19]} 19. g3 {
[%emt 0:05:37]} Nf6 {[%emt 0:01:50]} 20. f3 {[%emt 0:02:52]} h5 {[%emt 0:04:10]
} 21. Rf2 {[%emt 0:08:16]} d6 {[%emt 0:01:47]} 22. Nb5 {[%emt 0:02:42]} gxf3 {
[%emt 0:06:01]} 23. Bxf3 {[%emt 0:00:04]} Ng4 {[%emt 0:00:06]} 24. Bxg4 {
[%emt 0:01:48]} hxg4 {[%emt 0:00:07]} 25. Qc3 {[%emt 0:00:09]} Ba8 {[%emt 0:01:
29]} 26. Kf1 {[%emt 0:02:34]} Rd7 {[%emt 0:12:13]} 27. Rdd2 {[%emt 0:03:33]}
Rb8 {[%emt 0:01:53]} 28. a4 {[%emt 0:02:47]} Rf8 {[%emt 0:01:59]} 29. b3 {
[%emt 0:00:28]} Kh7 {[%emt 0:02:05]} 30. Ke1 {[%emt 0:01:18]} Nd8 {[%emt 0:00:
50]} 31. Qxa5 {[%emt 0:01:13]} Nf7 {[%emt 0:00:04]} 32. Nf4 {[%emt 0:01:16]}
Ng5 {[%emt 0:00:14]} 33. Kd1 {[%emt 0:01:39]} Ne4 {[%emt 0:00:13]} 34. Kc1 {
[%emt 0:00:04]} Qf6 {[%emt 0:00:46]} 35. Kb1 {[%emt 0:00:03]} Bb7 {[%emt 0:01:
32]} 36. Qb6 {[%emt 0:01:17]} Ra8 {[%emt 0:00:29]} 37. Nxd6 {[%emt 0:00:34]}
Nxf2 {[%emt 0:00:07]} 38. Qxc5 {[%emt 0:00:40]} Ne4 {[%emt 0:00:17]} 39. Qb5 {
[%emt 0:00:21]} Nxd2+ {[%emt 0:00:11]} 40. Kc2 {[%emt 0:00:00]} Qe7 {[%emt 0:
00:00]} 0-1

[Event "Khanty-Mansiysk FIDE GP (Women)"]
[Site "Khanty-Mansiysk"]
[Date "2014.04.10"]
[Round "2"]
[White "Dzagnidze, Nana"]
[Black "Muzychuk, Anna"]
[Result "1/2-1/2"]
[ECO "E12"]
[WhiteElo "2550"]
[BlackElo "2560"]
[Annotator "ChessBase Website"]
[PlyCount "59"]
[EventDate "2014.04.09"]
[EventType "tourn"]
[EventRounds "11"]
[EventCountry "RUS"]
[EventCategory "10"]
[SourceTitle "CBM 160"]
[Source "ChessBase"]
[SourceDate "2014.05.15"]
[SourceVersion "1"]
[SourceVersionDate "2014.05.15"]
[SourceQuality "1"]
[TimeControl "40/5400+30:1800+30"]
[WhiteClock "1:30:00"]
[BlackClock "1:30:00"]

1. d4 {[%emt 0:00:00]} Nf6 {[%emt 0:00:00]} 2. c4 {[%emt 0:00:00]} e6 {[%emt 0:
00:00]} 3. Nf3 {[%emt 0:00:07]} b6 {[%emt 0:00:06]} 4. a3 {[%emt 0:05:16]} Bb7
{[%emt 0:00:34]} 5. Nc3 {[%emt 0:00:06]} d5 {[%emt 0:00:37]} 6. cxd5 {[%emt 0:
00:10]} Nxd5 {[%emt 0:00:24]} 7. Qa4+ {[%emt 0:00:05]} (7. e3 g6 8. Bb5+ c6 9.
Bd3 Bg7 10. Ne4 O-O 11. O-O Nf6 12. b4 a5 13. Bb2 axb4 14. axb4 Rxa1 15. Qxa1
Nd5 16. Qa4 Nd7 17. Rc1 Qe7 18. Qa7 N7f6 19. Nxf6+ Bxf6 20. Ba6 Qxb4 21. Qxb7
Qxb2 22. Rxc6 g5 23. h3 h5 24. Nh2 Kg7 25. Bc4 Nb4 26. Rc7 Qa1+ 27. Nf1 Qa8 28.
Bxe6 Qxb7 29. Rxb7 Bd8 30. Bb3 h4 31. Nd2 Kg6 32. Nc4 f6 33. Nxb6 Nc6 34. Bc2+
f5 35. Nc4 Bf6 36. Nd6 Ne7 {Grischuk,A (2783)-Karjakin,S (2756) Beijing 2013
1-0}) 7... Nd7 {[%emt 0:01:43]} 8. Ne5 {[%emt 0:19:37]} Nxc3 {[%emt 0:11:20]}
9. bxc3 {[%emt 0:00:47]} Bd6 {[%emt 0:01:41]} 10. Nxd7 {[%emt 0:18:14]} Qxd7 {
[%emt 0:01:11]} 11. Qxd7+ {[%emt 0:00:04]} Kxd7 $15 {[%emt 0:00:05][%csl Ra3,
Rc3] White employed the Petrosian (quick a3) system against the Queen's Indian
but her experiment, or her attempt of reviving an old line, was not effective
and if anyone got an edge from the opening it was Black. However it was very
small and it was extinguished when too many pieces were traded off.} 12. f3 {
[%emt 0:00:06]} f5 {[%emt 0:14:12]} 13. e3 {[%emt 0:08:30]} c5 {[%emt 0:05:34]}
14. Bd3 {[%emt 0:05:19]} Rhf8 {[%emt 0:01:47]} 15. a4 {[%emt 0:02:09]} e5 {
[%emt 0:04:02]} 16. Bb2 {[%emt 0:06:04]} Rac8 {[%emt 0:06:09]} 17. dxe5 {
[%emt 0:15:47]} Bxe5 {[%emt 0:00:08]} 18. O-O-O {[%emt 0:00:08]} Kc7 {[%emt 0:
05:51]} 19. Rd2 {[%emt 0:00:48]} g6 {[%emt 0:03:13]} 20. Rhd1 {[%emt 0:01:31]}
Rcd8 {[%emt 0:01:13]} 21. c4 {[%emt 0:03:33]} Bxb2+ {[%emt 0:02:49]} 22. Rxb2 {
[%emt 0:00:18]} Rfe8 {[%emt 0:05:24]} 23. Re2 {[%emt 0:00:10]} Re7 {[%emt 0:03:
21]} 24. Bc2 {[%emt 0:04:18]} Rxd1+ {[%emt 0:07:03]} 25. Kxd1 {[%emt 0:01:04]}
Bc6 {[%emt 0:00:49]} 26. Kd2 {[%emt 0:01:12]} Rd7+ {[%emt 0:01:14]} 27. Kc3 {
[%emt 0:00:16]} Re7 {[%emt 0:00:04]} 28. Kd2 {[%emt 0:00:09]} Rd7+ {[%emt 0:00:
05]} 29. Kc3 {[%emt 0:00:04]} Re7 {[%emt 0:00:04]} 30. Kd2 {[%emt 0:00:09]}
1/2-1/2

[Event "Khanty-Mansiysk FIDE GP (Women)"]
[Site "Khanty-Mansiysk"]
[Date "2014.04.14"]
[Round "5"]
[White "Batchimeg, Tuvshintugs"]
[Black "Dzagnidze, Nana"]
[Result "0-1"]
[ECO "E12"]
[WhiteElo "2340"]
[BlackElo "2550"]
[Annotator "ChessBase Website"]
[PlyCount "196"]
[EventDate "2014.04.09"]
[EventType "tourn"]
[EventRounds "11"]
[EventCountry "RUS"]
[EventCategory "10"]
[SourceTitle "CBM 160"]
[Source "ChessBase"]
[SourceDate "2014.05.15"]
[SourceVersion "1"]
[SourceVersionDate "2014.05.15"]
[SourceQuality "1"]
[TimeControl "40/5400+30:1800+30"]
[WhiteClock "1:30:00"]
[BlackClock "1:30:00"]

1. d4 {[%emt 0:00:00]} Nf6 {[%emt 0:00:00] A marathon game, which finished at
the 98th move! Tuvshintugs found herself down a pawn but with some
compensation, making the game very murky. Black's awkward bishop and unsafe
king made conversion very difficult. At some point Dzagnidze could have
finished the game off after Tuvshintugs blundered, but she didn't see the
winning combination in time pressure. Eventually they reached a drawn queen
endgame, and in a bizarre decision Tuvshintugs played a random move instead of
forcing a perpetual check. Dzanigdze took her small advantage and outplayed
the Mongolian from then on, winning the game.} 2. c4 {[%emt 0:00:00]} e6 {
[%emt 0:00:00]} 3. Nf3 {[%emt 0:00:00]} b6 {[%emt 0:00:15]} 4. a3 {[%emt 0:00:
20]} Ba6 {[%emt 0:00:11]} 5. Qb3 {[%emt 0:00:57]} Nc6 {[%emt 0:01:27]} (5... c5
6. d5 b5 7. cxb5 Bb7 8. dxe6 fxe6 9. g3 d5 10. Bh3 Qb6 11. O-O Nbd7 12. a4 c4
13. Qc2 Rc8 14. a5 Qd6 15. Bf4 Qe7 16. b6 axb6 17. axb6 Nxb6 18. Nc3 h6 19.
Qg6+ Kd8 20. Ne5 Rg8 21. Nf7+ Kd7 22. Ra7 Rc7 23. Nb5 Nc8 24. Nxc7 Nxa7 25.
Bxe6+ {1-0 (25) Kovalenko,I (2643)-Bocharov,D (2602) Khanty-Mansiysk 2013}) 6.
Qc2 {[%emt 0:08:51]} d6 $146 {[%emt 0:14:26]} (6... b5 7. cxb5 Bxb5 8. Nc3 Ba6
9. e4 Bxf1 10. Kxf1 Be7 11. d5 Na5 12. dxe6 fxe6 13. e5 Nd5 14. Nxd5 exd5 15.
h4 Qb8 16. Bg5 Qb5+ 17. Kg1 Qc4 18. Qf5 g6 19. Qh3 Nb3 20. Re1 Bxg5 21. Nxg5
Nd4 22. Qg4 h5 23. Qd1 Rb8 {1/2-1/2 (23) Vitiugov,N (2720)-Iordachescu,V (2626)
Aix-les-Bains 2011}) 7. e4 {[%emt 0:19:49]} Nd7 {[%emt 0:10:06]} 8. d5 {
[%emt 0:07:18]} Nce5 {[%emt 0:01:11]} 9. Nbd2 {[%emt 0:10:37]} Bb7 {[%emt 0:27:
07]} 10. Nxe5 {[%emt 0:05:44]} dxe5 {[%emt 0:00:24]} 11. Be2 {[%emt 0:01:02]}
Bd6 {[%emt 0:02:02]} 12. O-O {[%emt 0:04:37]} Qe7 {[%emt 0:12:33]} 13. Nf3 {
[%emt 0:05:45]} O-O {[%emt 0:00:24]} 14. b4 {[%emt 0:04:13]} a5 {[%emt 0:02:28]
} 15. Bg5 {[%emt 0:02:29]} f6 {[%emt 0:00:46]} 16. dxe6 {[%emt 0:18:02]} fxg5 {
[%emt 0:00:16]} 17. exd7 {[%emt 0:00:19]} axb4 {[%emt 0:00:04]} 18. axb4 {
[%emt 0:00:17]} Bxb4 {[%emt 0:00:39]} 19. Rxa8 {[%emt 0:01:46]} Bxa8 {[%emt 0:
00:55]} 20. Rd1 {[%emt 0:01:35]} Bd6 {[%emt 0:01:00]} 21. h3 {[%emt 0:02:25]}
Bc6 {[%emt 0:03:16]} 22. c5 {[%emt 0:00:33]} bxc5 {[%emt 0:00:07]} 23. Bb5 {
[%emt 0:02:07]} Bxb5 {[%emt 0:02:46]} 24. Qb3+ {[%emt 0:00:01]} Qf7 {[%emt 0:
11:27]} 25. Qxb5 {[%emt 0:00:09]} h6 {[%emt 0:00:16]} 26. Rd5 {[%emt 0:00:49]}
Kh7 {[%emt 0:02:45]} 27. Qd3 {[%emt 0:01:39]} Qxd7 {[%emt 0:04:00]} 28. Nxe5 {
[%emt 0:00:24]} Qa4 {[%emt 0:00:09]} 29. Nc4 {[%emt 0:01:28]} Qa1+ {[%emt 0:00:
05]} 30. Qd1 {[%emt 0:00:03]} Qa2 {[%emt 0:00:19]} 31. Nd2 {[%emt 0:01:25]} c4
{[%emt 0:01:45]} 32. Qc1 {[%emt 0:00:37]} Rb8 {[%emt 0:00:27]} 33. g3 {[%emt 0:
00:28]} Rb2 {[%emt 0:00:32]} 34. e5 {[%emt 0:00:16]} c3 {[%emt 0:02:13]} 35.
Qxc3 {[%emt 0:00:22]} Qxd5 {[%emt 0:00:09]} 36. Qxb2 {[%emt 0:00:16]} Bxe5 {
[%emt 0:00:03]} 37. Qc2+ {[%emt 0:00:04]} Kh8 {[%emt 0:00:07]} 38. Ne4 {
[%emt 0:01:25]} Bd4 {[%emt 0:00:14]} 39. Nd2 {[%emt 0:00:39]} Qf7 {[%emt 0:01:
52]} 40. Ne4 {[%emt 0:00:00]} c5 {[%emt 0:00:00]} 41. Nd6 {[%emt 0:07:28]} Qe6
{[%emt 0:07:31]} 42. Nf5 {[%emt 0:02:04]} Qe5 {[%emt 0:01:46]} 43. Kf1 {
[%emt 0:02:38]} Qd5 {[%emt 0:00:47]} 44. Ne7 {[%emt 0:01:27]} Qf7 {[%emt 0:04:
48]} 45. Nf5 {[%emt 0:00:52]} Qd5 {[%emt 0:02:58]} 46. Ne7 {[%emt 0:00:36]} Qe6
{[%emt 0:00:05]} 47. Nf5 {[%emt 0:00:59]} Qe5 {[%emt 0:00:02]} 48. Qd3 {
[%emt 0:00:38]} Qe6 {[%emt 0:06:15]} 49. Nxd4 {[%emt 0:03:52]} Qd5 {[%emt 0:03:
02]} 50. Ke2 {[%emt 0:01:43]} cxd4 {[%emt 0:00:02]} 51. Qa6 {[%emt 0:03:38]}
Qe4+ {[%emt 0:00:12]} 52. Kd2 {[%emt 0:00:21]} Qf5 {[%emt 0:00:27]} 53. Ke2 {
[%emt 0:01:26]} Qc2+ {[%emt 0:00:14]} 54. Kf3 {[%emt 0:02:41]} Kh7 {[%emt 0:00:
28]} 55. Qe6 {[%emt 0:02:13]} Qd3+ {[%emt 0:00:22]} 56. Kg2 {[%emt 0:00:07]}
Qg6 {[%emt 0:01:11]} 57. Qd5 {[%emt 0:00:30]} Qf6 {[%emt 0:04:33]} 58. Qe4+ {
[%emt 0:00:08]} Kg8 {[%emt 0:00:05]} 59. Qe8+ {[%emt 0:00:06]} Kh7 {[%emt 0:00:
45]} 60. Qe4+ {[%emt 0:00:05]} g6 {[%emt 0:00:01]} 61. f4 {[%emt 0:05:00]} gxf4
{[%emt 0:00:16]} 62. gxf4 {[%emt 0:00:06]} h5 {[%emt 0:00:57]} 63. Kf3 {
[%emt 0:00:53]} Qd6 {[%emt 0:01:07]} 64. Ke2 {[%emt 0:01:24]} Qd7 {[%emt 0:00:
53]} 65. Kd3 {[%emt 0:00:47]} Qxh3+ {[%emt 0:00:21]} 66. Kxd4 {[%emt 0:00:02]}
Qa3 {[%emt 0:02:32]} 67. Qb7+ {[%emt 0:00:09]} Kh6 {[%emt 0:00:04]} 68. Qf7 {
[%emt 0:00:16]} h4 {[%emt 0:00:25]} 69. Qg8 {[%emt 0:00:55]} Qd6+ {[%emt 0:00:
57]} 70. Ke4 {[%emt 0:00:27]} Kh5 {[%emt 0:00:10]} 71. Qh8+ {[%emt 0:00:40]}
Kg4 {[%emt 0:00:02]} 72. Qc8+ {[%emt 0:00:05]} Kg3 {[%emt 0:00:07]} 73. Qc3+ {
[%emt 0:00:09]} Kh2 {[%emt 0:00:09]} 74. Qc2+ {[%emt 0:00:30]} Kg1 {[%emt 0:00:
07]} 75. Qc1+ {[%emt 0:00:09]} Kg2 {[%emt 0:00:05]} 76. Qc2+ {[%emt 0:00:09]}
Kf1 {[%emt 0:01:06]} 77. Qc1+ {[%emt 0:00:13]} Ke2 {[%emt 0:01:11]} 78. Qe3+ {
[%emt 0:00:10]} Kd1 {[%emt 0:00:01]} 79. Qg1+ {[%emt 0:00:27]} Kc2 {[%emt 0:00:
11]} 80. Qh2+ {[%emt 0:00:25]} Kc3 {[%emt 0:00:06]} 81. Qxh4 {[%emt 0:00:23]}
Qd3+ {[%emt 0:00:20]} 82. Ke5 {[%emt 0:00:07]} Qf5+ {[%emt 0:00:01]} 83. Kd6 {
[%emt 0:00:10]} Kd4 {[%emt 0:00:24]} 84. Ke7 {[%emt 0:03:53]} Ke4 {[%emt 0:00:
53]} 85. Qh6 {[%emt 0:00:13]} Kf3 {[%emt 0:00:13]} 86. Ke8 {[%emt 0:00:56]} Qf6
{[%emt 0:00:17]} 87. Kd7 {[%emt 0:00:47]} Qf7+ {[%emt 0:02:49]} 88. Kd8 {
[%emt 0:00:38]} Qf6+ {[%emt 0:00:26]} 89. Kd7 {[%emt 0:00:05]} Kg4 {[%emt 0:00:
17]} 90. Ke8 {[%emt 0:00:31]} Kf5 {[%emt 0:00:08]} 91. Kd7 {[%emt 0:01:08]}
Qd4+ {[%emt 0:00:19]} 92. Kc6 {[%emt 0:01:01]} Qxf4 {[%emt 0:00:46]} 93. Qh3+ {
[%emt 0:00:09]} Ke5 {[%emt 0:01:38]} 94. Qc3+ {[%emt 0:00:13]} Ke6 {[%emt 0:00:
07]} 95. Qb3+ {[%emt 0:00:16]} Kf6 {[%emt 0:00:21]} 96. Qb2+ {[%emt 0:00:17]}
Qe5 {[%emt 0:00:26]} 97. Qf2+ {[%emt 0:00:06]} Kg7 {[%emt 0:00:09]} 98. Qh4 {
[%emt 0:02:07]} Qf6+ {[%emt 0:00:14]} 0-1